bitfinex/quotes_ETHUSD_20240828
["timestamp","ask_amount","ask_price","bid_price","bid_amount"]
[1724813769145,9.50048957,2468.0,2467.3,19.83]
[1724813769146,9.2214,2467.8,2467.3,19.83]
[1724813769352,9.2214,2467.6,2467.3,19.83]
[1724813769646,9.2214,2467.4,2467.1,19.83]
[1724813769871,0.10133578,2467.3,2467.1,19.83]
[1724813770958,9.7432,2467.2,2467.1,19.83]
[1724813771154,9.79198634,2467.2,2467.1,19.83]
[1724813771767,9.79198634,2467.2,2467.1,19.78]
[1724813773249,0.04878634,2467.2,2467.1,20.33]
[1724813773447,0.04878634,2467.2,2467.1,24.44128545]
[1724813773687,9.6202,2467.5,2467.1,24.44128545]
[1724813773688,9.6202,2467.5,2467.2,0.4069]
[1724813774044,9.6202,2467.5,2467.3,4.11128545]
[1724813774376,9.6202,2467.5,2467.4,0.4069]
[1724813774939,9.6202,2467.5,2467.4,20.1869]
[1724813776486,9.6202,2467.5,2467.4,20.7369]
[1724813777980,9.6202,2467.5,2467.4,20.33]
[1724813780047,9.6202,2467.5,2467.4,19.78]
[1724813780746,9.6202,2467.5,2467.3,20.1869]
[1724813782696,0.10132397,2467.4,2467.3,20.1869]
[1724813783200,11.02311211,2467.4,2467.0,0.4069]
[1724813783500,11.02311211,2467.4,2466.7,19.78]
[1724813783663,11.02311211,2467.4,2466.5,19.78]
[1724813783664,9.90049032,2467.3,2466.5,19.78]
[1724813783861,9.8524,2467.1,2466.5,19.78]
[1724813784059,0.10134653,2467.0,2466.7,0.4069]
[1724813784697,0.04814189,2466.9,2466.7,0.4069]
[1724813785665,9.8524,2467.1,2466.7,0.4069]
[1724813786067,0.04814189,2467.0,2466.7,0.4069]
[1724813789670,0.04814189,2467.0,2466.8,20.1869]
[1724813792267,0.04814189,2467.0,2466.8,24.29818545]
[1724813792470,0.04814189,2467.0,2466.9,0.9569]
[1724813792799,0.04776805,2467.0,2466.9,0.9569]
[1724813793006,9.3162,2467.7,2466.9,0.9569]
[1724813793183,0.42449121,2468.0,2467.6,4.51818545]
[1724813793390,9.3162,2468.1,2467.7,0.55]
[1724813793905,9.3162,2468.1,2467.8,0.4069]
[1724813794268,9.3162,2468.1,2467.7,0.55]
[1724813794696,9.3162,2468.1,2467.8,4.51818545]
[1724813794905,9.3162,2468.1,2468.0,0.4069]
[1724813795380,0.03,2468.2,2468.0,5.06818545]
[1724813795580,0.03,2468.2,2468.0,4.51818545]
[1724813796168,0.03,2468.2,2468.0,0.4069]
[1724813798823,9.4705,2468.1,2468.0,0.4069]
[1724813799326,10.42055,2468.1,2467.7,0.4069]
[1724813799483,9.4705,2468.1,2467.9,0.4069]
[1724813799681,0.10130175,2468.0,2467.9,0.4069]
[1724813799881,9.4705,2468.1,2467.9,0.4069]
[1724813801987,9.4705,2468.1,2467.8,5.06818545]
[1724813803322,0.03,2468.2,2468.0,4.11128545]
[1724813803486,0.03,2468.2,2468.0,4.51818545]
[1724813803907,0.03,2468.2,2467.8,5.06818545]
[1724813804130,9.6279,2468.1,2467.8,5.06818545]
[1724813804439,9.67782019,2468.1,2467.8,5.06818545]
[1724813806535,0.10129641,2468.0,2467.5,0.4069]
[1724813806748,9.67782019,2468.1,2467.8,4.51818545]
[1724813807046,0.04992019,2468.0,2467.8,4.51818545]
[1724813807547,0.04992019,2468.0,2467.8,24.29818545]
[1724813808446,0.04992019,2468.0,2467.9,0.55]
[1724813809340,0.04992019,2468.0,2467.8,24.29818545]
[1724813810057,0.04992019,2468.0,2467.8,20.1869]
[1724813811551,9.6677,2467.9,2467.8,20.1869]
[1724813812055,9.71759442,2467.9,2467.8,20.1869]
[1724813812241,9.71456949,2467.9,2467.8,20.1869]
[1724813813243,10.68602644,2467.9,2467.8,20.1869]
[1724813813441,9.71456949,2467.9,2467.8,20.1869]
[1724813813641,9.71456949,2467.9,2467.7,0.4069]
[1724813814131,0.10131344,2467.8,2467.7,0.4069]
[1724813814726,0.13131893,2468.2,2467.7,0.4069]
[1724813815423,9.5418,2468.1,2467.7,0.4069]
[1724813815746,9.5418,2467.9,2467.6,0.4069]
[1724813815932,9.5418,2467.9,2467.8,0.4069]
[1724813816534,9.59120482,2467.9,2467.8,0.4069]
[1724813817656,10.5503253,2467.9,2467.6,0.4069]
[1724813817860,0.10131674,2467.8,2467.6,0.4069]
[1724813818441,0.04940482,2467.7,2467.6,0.4069]
[1724813818755,0.10131674,2467.8,2467.6,0.4069]
[1724813818961,0.04940482,2467.7,2467.6,0.4069]
[1724813819582,0.04940482,2467.7,2467.6,20.1869]
[1724813819758,9.5418,2467.9,2467.6,20.1869]
[1724813819955,0.04940482,2467.7,2467.6,20.1869]
[1724813820183,9.5418,2467.9,2467.6,20.1869]
[1724813820686,0.04940482,2467.8,2467.6,20.1869]
[1724813822793,0.10130967,2468.0,2467.6,20.1869]
[1724813822995,0.04906983,2467.7,2467.6,20.1869]
[1724813823178,0.10130967,2468.0,2467.6,20.1869]
[1724813823485,0.04906983,2467.9,2467.6,20.1869]
[1724813824553,0.04906983,2467.9,2467.7,7.8526]
[1724813824749,0.04906983,2467.9,2467.8,0.9569]
[1724813824979,0.03,2468.2,2467.8,0.9569]
[1724813825185,0.04916003,2467.9,2467.8,0.9569]
[1724813825355,9.8308,2468.0,2467.8,0.4069]
[1724813825692,0.15049415,2467.9,2467.5,0.4069]
[1724813825996,0.15049415,2467.9,2467.7,0.4069]
[1724813826828,0.10130835,2467.9,2467.7,0.4069]
[1724813827626,9.8308,2468.0,2467.7,0.4069]
[1724813827833,9.8308,2468.0,2467.8,0.9569]
[1724813828031,9.8308,2468.0,2467.9,0.55]
[1724813828715,9.0887,2468.2,2467.9,0.55]
[1724813828927,9.0887,2468.2,2467.8,0.4069]
[1724813829107,0.04927599,2468.1,2467.9,0.55]
[1724813830111,0.04927599,2468.1,2467.8,0.4069]
[1724813830344,0.04927599,2468.1,2467.9,0.55]
[1724813831335,0.04927599,2468.1,2467.8,0.4069]
[1724813831549,0.04927599,2468.1,2467.9,0.55]
[1724813832649,0.04927599,2468.1,2467.6,0.4069]
[1724813832650,9.406,2468.0,2467.8,0.4069]
[1724813832805,0.15074969,2467.9,2467.8,0.4069]
[1724813833235,0.04944348,2467.9,2467.8,0.4069]
[1724813833809,9.406,2468.0,2467.8,0.4069]
[1724813834146,0.04944348,2467.9,2467.8,0.4069]
[1724813834441,9.406,2468.0,2467.8,0.4069]
[1724813835346,9.5639,2468.2,2467.8,0.4069]
[1724813835550,9.5639,2468.2,2467.9,0.55]
[1724813835852,0.04944348,2468.1,2467.9,0.55]
[1724813836001,0.04944348,2468.1,2467.8,0.4069]
[1724813836324,0.04944348,2468.1,2467.9,0.55]
[1724813837549,0.04944348,2468.1,2467.8,0.4069]
[1724813837847,0.04944348,2468.1,2468.0,7.8526]
[1724813838034,0.04944348,2468.1,2468.0,8.4026]
[1724813838235,0.04944348,2468.1,2468.0,11.4026]
[1724813838409,0.03,2468.2,2468.0,14.92827713]
[1724813838751,0.03,2468.2,2468.1,16.924153]
[1724813838938,0.03,2468.2,2468.1,15.51388545]
[1724813839115,0.03,2468.2,2468.1,16.92419602]
[1724813839310,0.03,2468.2,2468.1,15.51388545]
[1724813840221,0.03,2468.2,2468.1,17.55864296]
[1724813840426,0.005,2468.9,2468.3,0.4069]
[1724813840627,0.005,2468.9,2468.7,11.96388545]
[1724813840859,4.11128545,2470.2,2468.7,11.96388545]
[1724813840860,0.42421837,2469.9,2468.7,4.51818545]
[1724813841063,1.624535,2472.0,2469.8,4.11128545]
[1724813841064,9.1992,2471.0,2469.8,4.11128545]
[1724813841228,9.1992,2471.0,2469.2,0.83828471]
[1724813841229,0.10118984,2470.9,2470.4,0.4069]
[1724813841411,0.10118984,2470.9,2470.5,0.55]
[1724813841853,9.7916,2470.8,2470.2,0.4069]
[1724813842067,0.10119888,2470.7,2470.3,0.55]
[1724813842212,9.7916,2471.3,2470.5,4.11128545]
[1724813842411,0.10117219,2471.2,2470.6,0.55]
[1724813842844,0.10117219,2471.2,2470.6,0.9569]
[1724813843418,10.77076,2471.3,2470.6,0.55]
[1724813843615,1.17825106,2471.2,2470.5,0.55]
[1724813843929,1.17825106,2471.2,2470.4,0.4069]
[1724813844153,1.09698511,2471.1,2470.6,0.4069]
[1724813844656,1.09698511,2471.1,2470.2,4.11128545]
[1724813844657,1.09698511,2471.1,2470.8,0.4069]
[1724813845757,0.10118233,2471.0,2470.8,0.4069]
[1724813845956,0.10118233,2471.0,2468.8,0.83828471]
[1724813845957,9.3653,2470.9,2469.9,4.11128545]
[1724813846276,9.3653,2470.9,2470.0,23.33]
[1724813846669,10.41152851,2470.9,2470.0,23.33]
[1724813847034,9.3653,2470.9,2470.0,23.33]
[1724813847233,9.3653,2470.9,2470.2,4.11128545]
[1724813847458,9.3653,2470.9,2470.3,0.55]
[1724813847768,0.10118253,2470.8,2470.3,0.55]
[1724813847971,9.3653,2470.9,2470.2,4.11128545]
[1724813848166,9.3653,2470.9,2470.3,0.55]
[1724813848870,10.41152851,2470.9,2470.4,19.78]
[1724813849037,0.15601032,2470.8,2470.5,20.33]
[1724813849233,1.2127642,2470.8,2470.5,19.78]
[1724813849459,9.2813,2470.6,2470.4,19.78]
[1724813849672,0.05541383,2470.5,2470.4,19.78]
[1724813849833,0.98908521,2470.5,2470.4,19.78]
[1724813851933,9.0049,2470.4,2469.0,2.42843401]
[1724813852145,9.0049,2470.2,2469.3,4.11128545]
[1724813852376,9.0049,2470.2,2469.5,4.11128545]
[1724813852591,9.0049,2470.2,2469.5,23.89128545]
[1724813852792,0.05473221,2470.1,2469.5,23.89128545]
[1724813852964,0.05473221,2470.1,2469.6,19.78]
[1724813853499,9.4455,2470.5,2469.7,0.55]
[1724813853793,0.00875655,2798.0,2469.7,0.55]
[1724813853794,9.7315,2471.1,2470.1,4.11128545]
[1724813853948,1.07433827,2471.0,2470.2,0.55]
[1724813854151,1.12907048,2471.0,2470.2,0.55]
[1724813854450,1.07433827,2471.0,2470.2,0.55]
[1724813855858,9.5215,2470.9,2470.2,0.55]
[1724813856065,0.15592059,2470.8,2470.0,3.55]
[1724813856257,0.15592059,2470.8,2470.0,0.55]
[1724813856463,1.06893044,2470.8,2470.0,0.55]
[1724813856699,0.10119819,2470.7,2470.0,0.55]
[1724813856894,9.5566,2470.6,2470.0,0.9569]
[1724813857398,0.15596904,2470.5,2470.0,0.9569]
[1724813857608,1.12722594,2470.5,2469.7,0.4069]
[1724813857815,9.3533,2470.4,2469.7,0.4069]
[1724813858165,0.05477081,2470.3,2469.7,0.4069]
[1724813858371,9.3533,2470.2,2469.7,0.4069]
[1724813858704,0.05477081,2470.1,2469.5,0.4069]
[1724813858870,0.05477081,2470.1,2469.7,0.4069]
[1724813859272,0.05477081,2470.1,2469.7,4.51818545]
[1724813859488,9.8477,2470.5,2469.7,4.51818545]
[1724813859666,0.05477081,2470.4,2469.9,0.4069]
[1724813859872,0.05477081,2470.4,2470.0,0.9569]
[1724813860184,0.05477081,2470.4,2470.1,20.33]
[1724813860507,9.8477,2470.5,2470.1,20.33]
[1724813861808,9.8477,2470.5,2470.1,20.7369]
[1724813864115,9.8477,2470.5,2470.2,20.1869]
[1724813865510,10.83247,2470.5,2470.2,20.1869]
[1724813865806,9.8477,2470.3,2470.2,19.78]
[1724813866106,9.8477,2470.3,2470.2,19.73]
[1724813866107,9.9023679,2470.3,2470.2,19.73]
[1724813866286,10.99108169,2470.3,2470.2,19.73]
[1724813870003,10.99108169,2470.3,2469.9,19.73]
[1724813870187,9.3636,2470.1,2470.0,19.73]
[1724813870800,9.4182679,2470.1,2470.0,19.73]
[1724813872725,10.46896607,2470.1,2470.0,19.73]
[1724813874395,9.4182679,2470.1,2470.0,19.73]
[1724813878500,9.4182679,2470.1,2469.7,0.4069]
[1724813878695,9.4182679,2470.1,2469.8,0.55]
[1724813880812,9.4182679,2470.1,2469.7,0.4069]
[1724813881018,9.4182679,2470.1,2469.8,0.55]
[1724813883021,9.4182679,2470.1,2469.7,0.9569]
[1724813884455,9.4182679,2470.1,2469.5,19.73]
[1724813884456,9.8923,2469.9,2469.6,0.4069]
[1724813884656,0.1012255,2469.8,2469.7,20.1369]
[1724813884824,0.05329123,2469.8,2469.7,20.1369]
[1724813885262,0.05329123,2469.8,2469.7,0.4069]
[1724813885468,10.88448853,2469.8,2469.2,20.1369]
[1724813885764,9.88992941,2469.8,2469.2,20.1369]
[1724813890980,9.88992941,2469.8,2469.3,20.1369]
[1724813891981,9.88992941,2469.8,2469.5,0.4069]
[1724813891982,9.78869123,2469.8,2469.5,0.4069]
[1724813892193,0.05329123,2469.8,2469.6,20.28]
[1724813892356,0.05329123,2469.8,2469.6,24.39128545]
[1724813892563,9.0593,2470.0,2469.7,0.4069]
[1724813893283,9.063,2470.3,2469.8,0.9569]
[1724813893483,9.16420857,2470.2,2469.6,20.6869]
[1724813894046,0.05015557,2470.1,2469.6,20.6869]
[1724813894846,0.05015557,2470.1,2469.6,24.79818545]
[1724813895046,0.05015557,2470.1,2469.6,20.6869]
[1724813896784,9.063,2470.0,2469.7,19.73]
[1724813897096,0.15137475,2469.9,2469.7,19.73]
[1724813897255,9.063,2469.8,2469.7,19.73]
[1724813897458,9.11354197,2469.8,2469.7,19.73]
[1724813902479,0.05054197,2469.8,2469.7,19.73]
[1724813902791,9.3811,2470.2,2469.7,20.6869]
[1724813902959,9.3811,2470.2,2469.8,0.55]
[1724813903381,9.3811,2470.2,2469.7,20.1369]
[1724813904090,9.3811,2470.2,2469.7,19.73]
[1724813905350,9.3811,2470.2,2469.8,0.4069]
[1724813905556,9.3811,2470.2,2469.9,0.55]
[1724813906405,9.3811,2470.2,2469.8,0.4069]
[1724813908692,9.3811,2470.2,2469.9,19.73]
[1724813909103,9.2964,2470.0,2469.9,19.73]
[1724813909328,9.2964,2470.0,2468.9,0.82741855]
[1724813909329,9.2964,2470.0,2469.6,20.1361]
[1724813909482,4.2617196,2469.9,2469.6,20.1361]
[1724813909813,9.2964,2469.8,2469.6,20.1361]
[1724813910314,0.04919852,2469.7,2469.6,20.1361]
[1724813910517,9.2964,2469.8,2469.6,20.1361]
[1724813910806,0.04919852,2469.7,2469.6,20.1361]
[1724813911204,9.2964,2469.8,2469.6,20.1361]
[1724813911416,0.04919852,2469.7,2469.6,20.1361]
[1724813911770,9.2964,2469.8,2469.6,20.1361]
[1724813911972,0.04919852,2469.7,2469.6,20.1361]
[1724813912207,0.15043137,2469.7,2469.6,20.1361]
[1724813912369,9.1358,2469.7,2469.6,20.1361]
[1724813912727,9.18499852,2469.7,2469.6,20.1361]
[1724813913082,9.18499852,2469.7,2469.6,19.73]
[1724813913423,10.10349837,2469.7,2469.6,19.73]
[1724813914714,10.10349837,2469.7,2469.4,19.73]
[1724813915025,9.2686,2469.5,2469.4,19.73]
[1724813915391,9.31710264,2469.5,2469.4,19.73]
[1724813916884,10.34066289,2469.5,2468.9,0.4061]
[1724813917087,9.5406,2468.9,2467.8,0.82741855]
[1724813917292,0.14964795,2468.8,2467.6,4.11128545]
[1724813917999,0.14964795,2468.8,2467.7,0.4061]
[1724813918702,0.04837375,2468.8,2468.0,0.4061]
[1724813918898,0.04837375,2468.8,2468.3,0.4061]
[1724813919097,9.7662,2469.1,2468.3,0.4061]
[1724813919301,9.7662,2469.1,2468.0,10.4357]
[1724813919302,0.14866575,2469.0,2468.5,0.4061]
[1724813919534,0.14866575,2469.0,2468.6,0.55]
[1724813919715,0.04740671,2469.0,2468.6,0.55]
[1724813920095,9.7662,2469.1,2468.6,0.55]
[1724813922405,0.10125753,2469.0,2468.6,0.55]
[1724813922701,9.7662,2469.1,2468.6,0.55]
[1724813922958,9.7662,2469.1,2468.5,0.9561]
[1724813923542,9.7662,2469.1,2468.0,7.4357]
[1724813923543,9.8258,2468.9,2467.5,4.11128545]
[1724813923850,9.97217183,2468.8,2467.5,4.11128545]
[1724813924004,9.8258,2468.6,2467.2,4.11128545]
[1724813924213,9.8258,2468.4,2467.2,4.11128545]
[1724813924404,4.11128545,2468.1,2467.1,0.4061]
[1724813924647,9.84822232,2468.0,2467.1,0.4061]
[1724813925037,0.04508764,2467.9,2467.1,0.4061]
[1724813925342,0.14640019,2467.9,2467.1,0.4061]
[1724813925542,0.14640019,2467.9,2467.0,0.4061]
[1724813925745,1.13573021,2467.9,2467.0,0.4061]
[1724813925898,9.1553,2467.8,2467.0,0.4061]
[1724813926103,9.3471,2467.6,2467.0,0.4061]
[1724813926335,0.04508764,2467.5,2467.0,0.4061]
[1724813926540,0.04508764,2467.5,2466.8,4.09752509]
[1724813926750,9.3471,2467.4,2466.2,7.4357]
[1724813926931,0.04508764,2467.3,2466.5,4.09752509]
[1724813927099,0.04508764,2467.3,2466.7,4.09752509]
[1724813928502,9.7637,2467.2,2466.5,4.50362509]
[1724813928707,0.04178293,2467.1,2466.5,4.50362509]
[1724813928909,0.04178293,2467.1,2466.9,4.09752509]
[1724813929146,9.8634,2467.6,2466.9,4.09752509]
[1724813929421,0.04178293,2467.5,2466.9,4.09752509]
[1724813929605,1.03230122,2467.5,2466.6,4.50362509]
[1724813929833,1.03230122,2467.5,2466.7,3.55]
[1724813930135,1.13362827,2467.5,2466.7,3.55]
[1724813930524,1.03230122,2467.5,2466.7,3.55]
[1724813930723,0.04178293,2467.5,2466.9,4.09752509]
[1724813930920,9.8634,2467.6,2467.0,0.55]
[1724813932854,0.04156334,2467.5,2466.8,0.55]
[1724813933851,0.04156334,2467.5,2466.1,17.67786921]
[1724813933852,9.1299,2467.4,2466.1,0.4061]
[1724813934027,9.1299,2467.4,2466.5,4.09752509]
[1724813934350,0.04156334,2467.3,2466.5,4.09752509]
[1724813934710,0.04156334,2467.3,2466.5,4.50362509]
[1724813935429,0.04156334,2467.3,2466.6,3.0]
[1724813935636,0.04156334,2467.3,2466.6,3.55]
[1724813936009,9.1299,2467.4,2466.6,3.55]
[1724813937227,9.1299,2467.4,2466.7,0.4061]
[1724813937411,9.1299,2467.4,2466.8,0.55]
[1724813937956,0.04156334,2467.3,2466.8,0.55]
[1724813938524,9.8476,2467.2,2465.5,20.93372177]
[1724813938728,9.94894363,2467.1,2465.9,4.09752509]
[1724813938916,0.04156334,2467.0,2465.9,4.09752509]
[1724813939116,0.14290699,2467.0,2465.9,4.50362509]
[1724813939641,9.6546,2466.9,2465.9,0.4061]
[1724813939815,9.6546,2466.9,2466.0,4.09752509]
[1724813940008,9.6546,2466.9,2466.1,18.22786921]
[1724813940207,0.04156334,2466.8,2466.2,3.0]
[1724813940445,9.6546,2466.9,2466.3,0.55]
[1724813941052,8.62173855,2466.9,2466.3,4.64752509]
[1724813941435,0.04078824,2466.8,2466.3,4.64752509]
[1724813943459,0.04078824,2466.8,2466.3,0.55]
[1724813943838,0.10134341,2467.4,2466.3,0.55]
[1724813944039,9.452,2467.3,2466.4,17.67786921]
[1724813944271,9.452,2467.1,2466.5,0.55]
[1724813944425,9.452,2466.9,2466.5,0.55]
[1724813944630,9.452,2466.9,2466.6,17.67786921]
[1724813944853,0.04042651,2466.8,2466.7,0.55]
[1724813948382,14.96254635,2466.8,2465.7,0.4061]
[1724813948527,9.8733,2466.7,2465.1,4.09957719]
[1724813948731,4.24134711,2466.8,2465.4,4.09957719]
[1724813948732,9.8733,2466.5,2465.4,4.09957719]
[1724813949076,0.14179921,2466.4,2465.4,4.09957719]
[1724813949362,0.14179921,2466.4,2465.4,4.50567719]
[1724813949774,0.14179921,2466.4,2465.4,0.4061]
[1724813949775,9.1597,2466.3,2465.4,0.4061]
[1724813949986,0.14179921,2466.4,2465.4,0.4061]
[1724813949987,9.1597,2466.1,2465.4,4.50567719]
[1724813950261,0.94116328,2467.4,2465.7,4.09957719]
[1724813950262,4.09957719,2467.1,2465.7,4.09957719]
[1724813950469,0.04042651,2466.0,2465.8,0.4061]
[1724813950763,0.10136028,2467.0,2465.8,0.4061]
[1724813950973,0.03927615,2466.9,2465.8,4.50567719]
[1724813951132,0.03927615,2466.9,2465.9,3.4061]
[1724813951332,0.03927615,2466.9,2466.0,0.55]
[1724813951565,0.10135222,2466.8,2466.0,0.55]
[1724813951773,0.03931494,2466.7,2466.0,0.55]
[1724813952133,0.03931494,2466.7,2465.6,3.4061]
[1724813952434,0.10135222,2466.8,2465.6,3.4061]
[1724813952633,0.10137022,2466.9,2465.6,3.4061]
[1724813952830,4.09957719,2466.6,2465.4,0.4061]
[1724813953068,0.10137336,2466.5,2465.4,0.4061]
[1724813953269,9.1597,2466.4,2465.4,0.4061]
[1724813953575,9.1597,2466.2,2465.5,18.08396921]
[1724813953868,0.038979,2466.1,2465.5,18.08396921]
[1724813954378,1.06022793,2466.1,2465.5,0.4061]
[1724813955639,1.06022793,2466.1,2465.1,0.4061]
[1724813955847,1.06022793,2466.1,2465.3,0.4061]
[1724813956068,0.14036003,2466.1,2465.5,0.4061]
[1724813956635,9.1597,2466.0,2465.5,0.4061]
[1724813956975,0.10139339,2465.9,2465.5,0.4061]
[1724813957339,0.03872043,2465.8,2465.5,0.4061]
[1724813958478,0.03872043,2465.8,2465.1,0.4061]
[1724813958680,9.4994,2465.7,2465.3,0.4061]
[1724813958882,0.1014055,2465.6,2464.6,0.4061]
[1724813959084,0.1014055,2465.6,2464.6,4.50567719]
[1724813959279,0.03872043,2465.5,2464.6,4.50567719]
[1724813959479,0.03872043,2465.5,2464.9,0.4061]
[1724813959990,9.4994,2465.7,2465.0,4.50567719]
[1724813960552,9.4994,2465.7,2465.1,0.9561]
[1724813962494,0.03820317,2465.6,2465.1,0.9561]
[1724813963153,0.13959754,2465.6,2465.1,0.9561]
[1724813963595,0.03820317,2465.6,2465.1,0.9561]
[1724813964792,9.4994,2465.7,2465.1,0.9561]
[1724813965298,9.4994,2465.7,2465.2,17.67786921]
[1724813965456,9.4994,2465.7,2465.3,0.55]
[1724813967893,9.4994,2465.7,2465.3,0.9561]
[1724813968055,9.9575,2466.4,2465.6,4.09957719]
[1724813968258,9.9575,2466.4,2466.0,4.09957719]
[1724813968602,9.9575,2467.0,2466.2,4.09957719]
[1724813968901,0.03787997,2466.9,2466.3,17.67786921]
[1724813969106,9.9575,2467.0,2466.4,4.09957719]
[1724813969461,9.9575,2467.0,2466.5,0.55]
[1724813969768,9.9575,2467.0,2466.6,17.67786921]
[1724813969969,0.13922424,2466.9,2466.6,17.67786921]
[1724813970185,0.13922424,2466.9,2466.2,17.67786921]
[1724813970186,9.8038,2466.8,2466.2,17.67786921]
[1724813970367,0.10136306,2466.7,2466.3,17.67786921]
[1724813970569,9.84167997,2466.6,2466.3,17.67786921]
[1724813974288,9.84167997,2466.6,2465.9,2.42843401]
[1724813974289,9.84167997,2466.6,2466.0,18.08396921]
[1724813974495,9.84167997,2466.6,2466.1,0.55]
[1724813974658,9.8038,2466.6,2466.1,0.55]
[1724813976174,9.8038,2466.6,2466.2,0.4061]
[1724813976374,9.8038,2466.6,2466.3,0.55]
[1724813976589,0.03919873,2466.5,2466.3,0.55]
[1724813976794,0.03919873,2466.5,2466.4,17.67786921]
[1724813977002,0.03919873,2466.5,2466.4,18.22786921]
[1724813978666,0.03919873,2466.5,2466.4,17.67786921]
[1724813980167,0.03919873,2466.5,2466.3,17.67786921]
[1724813981388,9.9897,2466.4,2466.3,17.67786921]
[1724813981909,10.02901506,2466.4,2466.3,17.67786921]
[1724813985302,11.03191657,2466.4,2466.3,17.67786921]
[1724813986121,11.03191657,2466.4,2466.0,17.67786921]
[1724813986412,0.1013743,2466.3,2466.0,17.67786921]
[1724813986612,0.03855238,2466.2,2466.0,17.67786921]
[1724813986786,0.03855238,2466.2,2465.4,14.84843401]
[1724813986787,9.4568,2466.1,2465.8,18.08396921]
[1724813986987,0.03855238,2466.0,2465.9,17.67786921]
[1724813987186,0.03855238,2466.0,2465.9,17.67531993]
[1724813987404,9.4568,2466.1,2465.9,17.67531993]
[1724813987806,10.40248,2466.1,2465.9,17.67531993]
[1724813988191,0.03850066,2466.0,2465.9,17.67531993]
[1724813989074,9.5006,2466.4,2465.9,21.77489712]
[1724813989279,9.5006,2466.4,2466.0,18.63141993]
[1724813989688,0.4246019,2467.1,2466.0,18.63141993]
[1724813989906,9.60196212,2467.0,2466.1,17.67531993]
[1724813990105,11.01457624,2467.0,2466.1,17.67531993]
[1724813990690,11.01457624,2467.0,2466.2,0.55]
[1724813993509,11.01457624,2467.0,2466.3,17.67531993]
[1724813993697,9.60196212,2467.0,2466.4,0.55]
[1724813995024,9.5006,2467.0,2466.4,0.55]
[1724813995234,9.5281,2467.4,2466.5,17.67531993]
[1724813995471,0.10133733,2467.3,2466.6,18.22531993]
[1724813996658,9.64817516,2467.2,2466.6,18.22531993]
[1724813997440,0.10133737,2467.1,2466.6,18.22531993]
[1724813997639,0.03900101,2467.0,2466.6,18.22531993]
[1724814000163,0.03900101,2467.0,2466.7,17.67531993]
[1724814000464,0.03900101,2467.0,2466.7,17.64888993]
[1724814000965,9.2595,2466.9,2466.7,17.64888993]
[1724814001169,0.03900101,2467.0,2466.3,17.64888993]
[1724814001170,9.3845,2466.7,2466.3,17.64888993]
[1724814001337,4.20094433,2466.6,2466.3,17.64888993]
[1724814001660,0.10136714,2466.6,2466.3,17.64888993]
[1724814002365,0.10136714,2466.6,2465.4,4.09957719]
[1724814002366,9.3845,2466.5,2465.3,0.4061]
[1724814002562,1.45993062,2466.4,2465.3,0.4061]
[1724814003362,0.10138619,2466.4,2465.4,4.50567719]
[1724814003864,9.3845,2466.5,2465.6,4.09957719]
[1724814004261,9.3845,2466.5,2465.7,0.4061]
[1724814004567,9.3845,2466.5,2465.8,0.55]
[1724814004568,0.10136859,2466.4,2465.8,0.55]
[1724814004860,9.3792,2466.3,2465.6,0.55]
[1724814005219,9.3792,2466.3,2465.6,4.64957719]
[1724814006126,9.3792,2466.3,2465.6,0.55]
[1724814009143,9.2011,2466.8,2465.7,9.2805]
[1724814009345,0.10136653,2466.7,2465.9,4.09957719]
[1724814009554,0.10136653,2466.7,2466.0,0.55]
[1724814010371,0.10136653,2466.7,2465.9,0.55]
[1724814010573,9.309,2466.6,2465.9,0.55]
[1724814010878,0.10136227,2466.5,2465.9,0.55]
[1724814011030,9.309,2466.6,2465.9,0.55]
[1724814011234,0.10136223,2466.5,2465.8,20.64888993]
[1724814011537,1.04239845,2466.5,2465.8,20.64888993]
[1724814012570,1.04239845,2466.5,2465.9,0.55]
[1724814012881,0.03900101,2467.0,2466.4,4.09957719]
[1724814013041,0.03900101,2467.0,2466.7,4.09957719]
[1724814013534,0.03900101,2467.0,2466.8,0.55]
[1724814013951,0.03900101,2467.0,2466.8,0.9561]
[1724814014748,0.03900101,2467.0,2466.9,17.64888993]
[1724814014948,0.03900101,2467.0,2466.9,18.19888993]
[1724814015483,0.03900101,2467.0,2466.9,17.64888993]
[1724814016443,9.3591,2466.9,2466.6,17.64888993]
[1724814016668,1.04115858,2466.8,2466.6,17.64888993]
[1724814017285,1.04115858,2466.8,2466.1,2.42843401]
[1724814017286,9.6023,2466.7,2466.1,17.64888993]
[1724814017465,9.70367381,2466.6,2465.8,17.64888993]
[1724814017634,1.3803251,2466.5,2465.8,17.64888993]
[1724814017842,0.10137408,2466.4,2465.8,17.64888993]
[1724814018094,0.03755845,2466.3,2465.8,17.64888993]
[1724814018267,9.9709,2466.2,2465.8,17.64888993]
[1724814018469,9.9709,2466.2,2465.9,17.64888993]
[1724814018774,0.13844285,2466.1,2465.6,0.4061]
[1724814019078,0.03706709,2466.1,2465.6,0.4061]
[1724814019243,9.9709,2466.2,2465.6,0.4061]
[1724814019576,0.03673081,2466.1,2465.7,17.64888993]
[1724814019753,0.13810775,2466.1,2465.7,17.64888993]
[1724814021779,0.13810775,2466.1,2465.8,0.55]
[1724814021980,0.13810775,2466.1,2465.7,17.64888993]
[1724814022363,0.10137694,2466.1,2465.7,17.64888993]
[1724814022569,1.20831363,2466.1,2465.7,17.64888993]
[1724814022879,0.03657558,2466.0,2465.7,17.64888993]
[1724814024389,9.4196,2465.9,2465.7,17.64888993]
[1724814024769,0.03652383,2465.8,2465.5,17.64888993]
[1724814024982,0.03652383,2465.8,2465.6,0.55]
[1724814025181,9.4196,2465.9,2465.6,0.55]
[1724814030905,9.5142,2466.4,2465.6,18.19888993]
[1724814031059,0.10138762,2466.3,2465.6,18.19888993]
[1724814032490,0.09327765,2466.3,2465.6,18.19888993]
[1724814033423,0.09327765,2466.3,2465.6,17.64888993]
[1724814033424,9.4305,2466.2,2465.6,17.64888993]